Cogmind - Beta 16 @@@ ROGUE MODE // 2025.11.01 @ 20:13:48 Player: RHAHI Result: Destroyed by D-53 Grenadier with Mini Grenade Launcher Performance ------------- Evolutions (0) 0 Regions Visited (2) 400 Robots Destroyed (22) 110 Value Destroyed (493) 493 Prototype IDs (2) 40 Alien Tech Used (0) 0 Bonus (0) 0 TOTAL SCORE: 1043 Bonus ------- None Cogmind --------- Core Integrity 0/250 Matter 241/300 Energy 100/100 System Corruption 1% Temperature Cool (0) Movement Treading (160) Location -10/Mines Parts ------- > --- POWER (1) -------- (None) > --- PROPULSION (2) --- Light Treads > --- UTILITY (2) ------ Large Storage Unit > --- WEAPON (2) ------- (None) > --- INVENTORY (15) --- Improved Heat Sink Medium Storage Unit Medium Battery (150) High-capacity Matter Pod (200) High-capacity Matter Pod (200) Weight Redist. System Visual Processing Unit Sensor Array Targeting Computer Tractor Beam Particle Gun Grenade Launcher Datajack Peak State ------------ > --- POWER ------------ Light Nuclear Core > --- PROPULSION ------- Light Treads Light Treads > --- UTILITY ---------- Large Storage Unit Sensor Array > --- WEAPON ----------- Assault Rifle Light Assault Rifle > --- INVENTORY -------- Ion Engine Ion Engine Light Nuclear Core Light Treads Light Treads Compact Wheel Improved Heat Sink Medium Storage Unit Medium Battery High-capacity Matter Pod High-capacity Matter Pod Visual Processing Unit Seismic Detector Targeting Computer Grenade Launcher [Rating: 11] Favorites ----------- Power Light Nuclear Core Engine Ion Engine Power Core Light Nuclear Core Propulsion Light Treads Treads Light Treads Wheel Compact Wheel Utility Large Storage Unit Device Sensor Array Storage Large Storage Unit Processor Signal Interpreter Weapon Light Assault Rifle Energy Gun Particle Gun Ballistic Gun Light Assault Rifle Launcher Grenade Launcher Special Weapon Mining Laser Special Melee Weapon Datajack Build | -11 -10 -10 ------- Run | Yrd Mat Min Slots Evolved . | . . . Power . | . . . Propulsion . | . . . Utility . | . . . Weapon . | . . . Parts Attached 24 | 7 15 2 Power 3 | 1 2 . Engine 1 | 1 . . Core 2 | . 2 . Reactor . | . . . Propulsion 6 | 2 3 1 Treads 4 | . 3 1 Leg . | . . . Wheel 2 | 2 . . Hover . | . . . Flight . | . . . Utility 7 | 2 5 . Device 3 | 1 2 . Storage 3 | 1 2 . Processor 1 | . 1 . Hackware . | . . . Protection . | . . . Artifact . | . . . Weapon 8 | 2 5 1 Energy Gun 2 | . 2 . Energy Cannon . | . . . Ballistic Gun 3 | 2 1 . Ballistic Cannon . | . . . Launcher 1 | . . 1 Special Weapon 1 | . 1 . Impact Weapon . | . . . Slashing Weapon . | . . . Piercing Weapon . | . . . Special Melee Weapon 1 | . 1 . Unidentified Prototypes . | . . . Parts Lost 9 | . 3 6 Power 2 | . 1 1 Propulsion 3 | . . 3 Utility 1 | . . 1 Weapon 3 | . 2 1 Highest Loss Streak 6 | . 2 6 To Critical Strikes . | . . . Average Backups 13 | 4 13 14 Power 1 | 1 2 . Propulsion 2 | 2 2 1 Utility 7 | . 7 10 Weapon 1 | . . 2 Tool/Special . | . . . Unused Backups 19 | 2 7 10 Power 3 | . 3 . Propulsion 4 | 2 2 . Utility 9 | . 1 8 Weapon 3 | . 1 2 Tool/Special . | . . . Average Slot Usage (%) 97 | . 97 94 Engine 1 | . 1 . Core 12 | . 11 13 Treads 21 | . 23 16 Wheel 5 | . 4 11 Device 9 | . 8 12 Storage 14 | . 14 14 Processor 4 | . 5 . Energy Gun 1 | . 1 . Ballistic Gun 22 | . 24 12 Special Melee Weapon 2 | . . 11 Peak Build Rating 11 | 7 11 11 Average Rating 9 | 5 9 10 On Entrance 6 | . 7 11 Avg Prop Armor Cover (%) 14 | . 13 15 Naked Turns . | . . . Heaviest Build 30 | 14 30 30 Greatest Support 40 | 26 40 40 Greatest Overweight (x) 1 | . 1 1 Average Overweight (x) . | . . . Largest Inventory Capacity 15 | 8 15 15 Average Capacity 14 | 7 14 15 Most Carried 15 | 8 15 15 Average Carried 13 | 5 13 14 Final Capacity 15 | 8 15 15 Final Carried 15 | 8 15 13 Class Distribution -------------------- 100% | Mutant Dominant Class ---------------- Mutant | -10/Materials Mutant | -10/Mines Resources | -11 -10 -10 ----------- Run | Yrd Mat Min Matter Collected 1123 | 310 813 . Remotely . | . . . Salvage Created 834 | 130 704 . Parts 46 | 7 39 . Haulers Intercepted 2 | . 2 . Recyclers Shooed 2 | 1 1 . Parts Field Recycled . | . . . Retrieved Matter . | . . . Parts Self-Destructed . | . . . Prevented . | . . . Parts Restored . | . . . Kills | -11 -10 -10 ------- Run | Yrd Mat Min Combat Hostiles Destroyed 10 | . 10 . Melee 1 | . 1 . Guns 9 | . 9 . Classes Destroyed 7 | 2 5 . Worker 1 | . 1 . Tunneler 2 | 2 . . Hauler 2 | . 2 . Recycler 3 | 1 2 . Operator 1 | . 1 . Watcher 3 | . 3 . Grunt 10 | . 10 . Best Kill Streak 3 | 3 2 . Combat Bots Only 2 | . 2 . Max Kills in Single Turn 2 | 1 2 . Gunslinging 1 | . 1 . Exploded . | . . . Melee 1 | . 1 . Uniques/NPCs Destroyed . | . . . Combat | -11 -10 -10 -------- Run | Yrd Mat Min Hostile Shots Fired 94 | . 67 27 Missed 24 | . 13 11 Hits 70 | . 54 16 Melee 3 | . . 3 Projectile 67 | . 54 13 AOE 9 | . . 9 Critical Strikes 4 | . 3 1 Damage Taken 1222 | . 701 521 Core 257 | . 139 118 Absorbed by Shields . | . . . Regen/Repaired (Parts) 60 | . 60 . Core Remaining (%) 100 | 100 . . Volleys Fired 89 | 10 79 . Largest 2 | 2 2 . Hottest 120 | 40 120 . Shots Fired 164 | 20 144 . Gun 162 | 20 142 . Cannon . | . . . Launcher . | . . . Special 2 | . 2 . Kinetic 158 | 20 138 . Thermal 6 | . 6 . Explosive . | . . . Electromagnetic . | . . . Robot Hit Streak 8 | 2 8 . Robot Miss Streak 9 | 5 9 . Penetration Max . | . . . Secondary Targets 2 | . 2 . Max Gunslinging Chain 1 | . 1 . Shots Hit Robots 97 | 8 87 2 Core Hits 45 | 5 40 . Critical Kills 1 | . 1 . Critical Parts Destroyed . | . . . Critical Strikes 1 | . 1 . Destroy 1 | . 1 . Melee Attacks 2 | . . 2 Impact . | . . . Slashing . | . . . Piercing . | . . . Sneak Attacks 1 | . . 1 Combat Hostiles . | . . . Follow-up Attacks . | . . . Damage Inflicted 1104 | 79 1025 . Guns 1066 | 79 987 . Cannons . | . . . Explosions . | . . . Melee . | . . . Ramming 14 | . 14 . Kinetic 1026 | 79 947 . Thermal 64 | . 64 . Explosive . | . . . Electromagnetic . | . . . Impact . | . . . Slashing . | . . . Piercing . | . . . Highest Corruption 1 | . . 1 Average Corruption 1 | . . 1 Corruption Purged . | . . . Corruption Blocked . | . . . Effects 1 | . . 1 Data Loss (minor) 1 | . . 1 Overload Shots . | . . . Overflow Damage . | . . . Projectiles . | . . . Explosions . | . . . Melee . | . . . Knockbacks . | . . . Impact . | . . . Kinetic . | . . . Secondary . | . . . Self-Inflicted Damage . | . . . Shots . | . . . Rammed 3 | . 3 . Targets Rammed 4 | . 4 . Kicked . | . . . Crushed 1 | . 1 . Highest Temperature 90 | . 90 . Average Temperature 21 | . 21 . Received Heat Transfer 450 | . 450 . Siege Activations . | . . . Martial Activations . | . . . Shielding Activations . | . . . Robots Disrupted . | . . . Combat Hostiles . | . . . Robots Corrupted . | . . . Combat Hostiles . | . . . Parts Fried . | . . . Impact Corruptions . | . . . Robots Melted . | . . . Combat Hostiles . | . . . Parts Melted . | . . . Heat Transferred 161 | . 161 . Parts Sabotaged . | . . . Parts Stolen . | . . . Parts Stripped . | . . . Power Chain Reactions . | . . . Alert | -11 -10 -10 ------- Run | Yrd Mat Min Maximum Alert Level . | . . . Low Security (%) 100 | 100 100 100 Level 1 . | . . . Level 2 . | . . . Level 3 . | . . . Level 4 . | . . . Level 5 . | . . . High Security . | . . . Max Security . | . . . Peak Influence 76 | 10 76 19 Initial 19 | . . 19 Average 12 | . 14 1 Influence Increases 380 | 15 365 . Destroy 0b10 Robot/C 200 | . 200 . Destroy 0b10 Robot/NC 60 | 15 45 . Destroy Leader 60 | . 60 . Successful Hack 13 | . 13 . Destroy Structure 2 | . 2 . Lose Combat Pursuer 45 | . 45 . Influence Decreases 380 | 15 313 52 Entered New Map 33 | . . 33 Time Decay 327 | 15 293 19 Lost Part 20 | . 20 . Squads Dispatched 4 | . 4 . Investigation 3 | . 3 . Extermination . | . . . Reinforcement 1 | . 1 . Assault . | . . . Garrison . | . . . Intercept . | . . . Searches Triggered . | . . . Construction Impeded . | . . . Haulers Reinforced . | . . . Active Scanning Responses . | . . . Cargo Convoy Interrupts . | . . . Stealth | -11 -10 -10 --------- Run | Yrd Mat Min Distress Signals 2 | . 2 . Communications Jammed . | . . . Distress Signals . | . . . Times Spotted 50 | . 27 23 Peak Tracking Total 19 | . 3 19 Tactical Retreats 4 | . 2 2 Traps | -11 -10 -10 ------- Run | Yrd Mat Min Traps Triggered 2 | . 2 . Indirectly . | . . . Trap Hack Attempts . | . . . Triggered . | . . . Disarmed . | . . . Reprogrammed . | . . . Reused . | . . . Traps Extracted . | . . . Installed . | . . . Triggered . | . . . Machines | -11 -10 -10 ---------- Run | Yrd Mat Min Machines Disabled . | . . . Max in Single Turn . | . . . Machines Repaired . | . . . Machines Dismantled . | . . . Machines Sabotaged . | . . . Overloaded Fab Kills . | . . . Hacking | -11 -10 -10 --------- Run | Yrd Mat Min Machines Accessed 6 | . 6 . Terminals 4 | . 4 . Fabricators . | . . . Repair Stations 1 | . 1 . Recycling Units 1 | . 1 . Scanalyzers . | . . . Garrison Access . | . . . Total Hacks 22 | . 22 . Successful 11 | . 11 . Failed 11 | . 11 . Catastrophic 2 | . 2 . Database Lockouts . | . . . Manual 11 | . 11 . Terminals 13 | . 13 . Fabricators . | . . . Repair Stations 4 | . 4 . Recycling Units 5 | . 5 . Scanalyzers . | . . . Garrison Access . | . . . Terminal Hacks 5 | . 5 . Robot Analysis 2 | . 2 . Prototype ID Bank 1 | . 1 . Branch Access Points 1 | . 1 . Zone Layout 1 | . 1 . Fabricator Hacks . | . . . Repair Station Hacks 3 | . 3 . Scan Component 2 | . 2 . Repair 1 | . 1 . Recycling Unit Hacks 1 | . 1 . Retrieve Components 1 | . 1 . Scanalyzer . | . . . Garrison Access Hacks . | . . . Unauthorized Hacks 2 | . 2 . Terminals . | . . . Fabricators . | . . . Repair Stations . | . . . Recycling Units 2 | . 2 . Reject 1 | . 1 . Mask 1 | . 1 . Scanalyzers . | . . . Garrison Access . | . . . Data Cores Recovered . | . . . Used . | . . . Hacking Detections 6 | . 6 . Full Trace Events 2 | . 2 . Feedback Events . | . . . Feedback Blocked . | . . . Robot Schematics Acquired . | . . . Robots Built . | . . . Authchips . | . . . Time . | . . . Total Robot Build Rating . | . . . Part Schematics Acquired . | . . . Parts Built . | . . . Authchips . | . . . Time . | . . . Total Part Build Rating . | . . . Part Studies Acquired . | . . . Parts Repaired 1 | . 1 . Time 26 | . 26 . Parts Recycled . | . . . Recycled Matter . | . . . Retrieved Matter . | . . . Retrieved Components 10 | . 10 . Parts Scanalyzed . | . . . Part Schematics Acquired . | . . . Parts Damaged . | . . . Bothacking | -11 -10 -10 ------------ Run | Yrd Mat Min Used RIF Installer . | . . . Robots Hacked 2 | . . 2 Non-combat 1 | . . 1 Combat 1 | . . 1 Robot Hacks Applied 2 | . . 2 parse_system 1 | . . 1 no_distress 1 | . . 1 Relay Couplers Released . | . . . Fabnet Peak Effective % . | . . . Robots Rewired . | . . . Allies Hacked . | . . . Hacks Repelled . | . . . Allies | -11 -10 -10 -------- Run | Yrd Mat Min Total Allies . | . . . Largest Group . | . . . Highest-Rated Group . | . . . Highest-Rated Ally . | . . . Total Orders . | . . . Ally Attacks . | . . . Total Damage . | . . . Kills . | . . . Allies Corrupted . | . . . Allies Melted . | . . . Intel | -11 -10 -10 ------- Run | Yrd Mat Min Active Infowar (turns) 1652 | 25 1289 338 Sensors 1333 | . 1116 217 Seismic 319 | 25 173 121 Robot Analysis Total 2 | . 2 . Derelict Logs Recovered 1 | . . 1 Drone Launches . | . . . Drone Recoveries . | . . . Exploration | -11 -10 -10 ------------- Run | Yrd Mat Min Turns Passed 2559 | 116 2056 387 Spaces Moved 1421 | 65 1049 307 Core 1 | 1 . . Treads 708 | . 673 35 Legs . | . . . Wheels 712 | 64 376 272 Hover . | . . . Flight . | . . . Fastest Speed 50 | 50 90 115 Average Speed 133 | 88 139 120 Slowest Speed 160 | 90 160 160 Overloaded Moves . | . . . Propulsion Burnouts . | . . . Robots Hopped . | . . . Potential Cave-ins 5 | . . 5 Cave-ins Triggered . | . . . Exploration Rate (%) 53 | 4 89 68 Regions Visited 2 Branch Regions 1 Pre-discovered Areas 2 | . . 2 Known Exits Taken 1 | . 1 . Unknown Exits Taken 1 | 1 . . Scrap Searched . | . . . Spaces Dug . | . . . Terrain Destroyed 1 | . 1 . Melee . | . . . Projectile 1 | . 1 . AOE . | . . . Terrain Rammed . | . . . Walls Destroyed . | . . . Machines Disabled . | . . . Actions | -11 -10 -10 --------- Run | Yrd Mat Min Total 1930 | 103 1504 323 Wait 338 | 9 322 7 Move 1419 | 64 1048 307 Hop . | . . . Pick Up 30 | 11 18 1 Fast Attach 10 | 6 4 . Attach 7 | 1 4 2 Detach 1 | . 1 . Swap 13 | . 10 3 Drop 17 | 2 14 1 Fire 89 | 10 79 . Melee 2 | . . 2 Ram . | . . . Kick . | . . . Crush 4 | . 4 . Escape Stasis . | . . . Rewire . | . . . Trap . | . . . Miscellaneous . | . . . Route ------- -11/Scrapyard -10/Materials (discovered 3 exits: [*Mat x2] / *Min) -10/Mines (discovered 2 exits: [*Mat] / [*Exi]) History --------- Turn | Location | Event 25 | -11/Scrapyard | Discovered new exit (range 15) 117 | -11/Scrapyard | Entered Materials 286 | -10/Materials | Discovered new exit (range 7) 339 | -10/Materials | Build established: Mutant 495 | -10/Materials | Repaired Assault Rifle? 881 | -10/Materials | Discovered new exit (range 14) 954 | -10/Materials | Core integrity fell below 50% 1024 | -10/Materials | Identified exit to Mines 1968 | -10/Materials | Discovered new exit (range 8) 2173 | -10/Materials | Entered Mines 2189 | -10/Mines | YI-UF0 nonchalantly dropped a Grenade Launcher on the ground 2197 | -10/Mines | Learned location of Storage (-8) 2355 | -10/Mines | Discovered new exit (range 9) 2441 | -10/Mines | Discovered new exit (range 6) 2484 | -10/Mines | Assembled infested the area 2548 | -10/Mines | Core integrity fell below 20% 2560 | -10/Mines | Destroyed by D-53 Grenadier with Mini Grenade Launcher Last Messages --------------- 02517_ K-01 Serf collects debris. 02518_ Com. Wheel destroyed. 02519_ The unstable cave ceiling collapses. 02522_ as-77358 destroyed. 02522_ K-01 Serf collects debris. 02523_ System corrupted: Component data lost. 02523_ The unstable cave ceiling collapses. 02524_ as-53756 destroyed. 02524_ as-46674 destroyed. 02526_ The unstable cave ceiling collapses. 02526_ K-01 Serf collects debris. 02527_ The unstable cave ceiling collapses. 02541_ D-53 Grenadier destroyed. 02542_ The unstable cave ceiling collapses. 02542_ K-01 Serf collects debris. 02543_ Grenade Launcher destroyed. 02543_ Lgt. Treads destroyed. 02549_ Lgt. Nuclear Core destroyed. 02549_ T-07 Excavator destroyed. 02551_ Lgt. Treads destroyed. Map ----- +----------------------------------------------------+ | """ #???## ##### #?????????????????????????? | | #??## # #?????????????????????????? | | ## #### #?????????????????????????? | | ## #### #????????????????????????? | | # ##?# """ #???????????????????????? | | ############??# """ #??????????????????????? | | ##???????????# """ #??????????????????????? | | #???????????# ?????????????????????? | | #??????????? ???????????????????? | | #?????????? ####??????????? ##??? | | ##?????????? ##?????????????? ##?? | | ###?????????? ? ##?????????????? ?? | | #??????????? ## #??#??????????????? #?? | | #?????????????## ##?????????????????? #??? | | #??????????????# #???????????????????? #???? | | #??????????????? ????????????????????# #???? | | #??????????????? #############?????## #???? | | ##?????????????# #????## #????? | | #???????????????########## ###### #?????? | | ## ######????????###???????## # ## #??????? | | ?# #????????# #?????## #???????? | | ?##### #???????## ##???# #???????? | | ?????# #???????# #???# ##???????? | | ?????# #???????# ##### d #????????? | | ?????# #???????# ######???? | | ?????# #???????# @ #???? | | ?????# #???????# < ###t#### #???? | | ?????# #####???## #??# #?# # ## #???? | | ?????# #????###???# #?## ####% ## #### | | ?????#### # #####??????# #??######### # | | ????##### # ## ##?????# ####??????# #### | | ???## ###???# #??????# #??? | | ???# ##??#### #??????# # # # #??? | | ???# ##????# #??????# ## ##??? | | ???## ##???# #??????## #???? | | ????## ###?# #??????# #??? | | ?????# ## ### #??????## ##??? | | ????## ###### ## #???????# ##??? | | ???## ##????# #???????# ???# | | ???# #????# ## ##???????# ### | | ??## #????# ### #???????# # | | ??# ##???## ##?# #???????# # | | ??# ###??#####??# ###?????# % # | | ??# ##????????# #?????### # | | ??# ##???????### #??????### ## # # | | ??# ###??????## ##????????#####?## # | | ?## ## ##???## ###?????????????????? | | ## #### ## ##??# #??????????????????? | | # ##??###### #### < #??????????????????? | | # #????????# #???????????????????? | +----------------------------------------------------+ Best States ------------- Heat Dissipation 25 Energy Generation 14 Energy Capacity 250 Matter Stores 300 Matter Capacity 300 Sight Range 16 Robot Scan Range 14 Terrain Scan Density 10 Evasion (%) 44 Recoil Reduction 2 Item Schematics ----------------- None Robot Schematics ------------------ None Fabricated ------------ Nothing Repaired ---------- Assault Rifle | 40% | -10/Materials Studied --------- None Alien Tech Used ----------------- None Achievements -------------- For Emergencies Only Junior Dev Challenges ------------ None Game ------ Seed TowerMakeshiftModule Manual? 0 Play Time 00:38:37 Cumulative 48.2 hours Start 2025.11.01 @ 19:32:59 End 2025.11.01 @ 20:13:48 Sessions 1 Manual Loads 0 Difficulty Rogue Special Mode None Game No. 18 Rogue 17 Adventurer 1 Explorer 0 Win Type - Total 1 Types 1/0/0/0/0/0/0/0/0/0 Lore% 20 Gallery% 30 Achievement% 22 Wizard Run 0 Options --------- Layout 1 ASCII 0 Keyboard 1 Movement Vi Keybinds 0 Fullscreen 1 Font 32/TamsynBold Map View 50x35 Zoom Use 0% Tactical HUD 1 Map Filters NONE Filters NONE Steam 1 RUN: b90f20d8-b8c4-40ef-9eaa-af345c4a600d